Cogmind - Beta 13 @@@ ROGUE MODE // 2024.04.27 @ 12:36:12 Player: SovietPaperclip Result: Self-destructed Performance ------------- Evolutions (1) 500 Regions Visited (2) 400 Robots Destroyed (24) 120 Value Destroyed (461) 461 Prototype IDs (0) 0 Alien Tech Used (0) 0 Bonus (0) 0 TOTAL SCORE: 1481 Bonus ------- None Cogmind --------- Core Integrity 250/400 Matter 212/300 Energy 100/100 System Corruption 0% Temperature Cool (0) Movement Core (700) Ox13 Location -9/Materials Parts ------- > --- POWER (1) -------- (None) > --- PROPULSION (3) --- (None) > --- UTILITY (3) ------ High-capacity Storage Unit > --- WEAPON (2) ------- (None) > --- INVENTORY (20) --- Light Treads Wheel Cargo Storage Unit Machine Analyzer Machine Analyzer Peak State ------------ > --- POWER ------------ Ion Engine > --- PROPULSION ------- Light Treads Light Treads Light Treads > --- UTILITY ---------- High-capacity Storage Unit Light Armor Plating Light Armor Plating > --- WEAPON ----------- Light Assault Rifle Light Assault Rifle > --- INVENTORY -------- Light Ion Engine Light Treads Wheel Cargo Storage Unit Machine Analyzer Machine Analyzer Grenade Launcher Grenade Launcher [Rating: 10] Favorites ----------- Power Ion Engine Engine Ion Engine Propulsion Light Treads Treads Light Treads Utility Light Armor Plating Storage High-capacity Storage Unit Protection Light Armor Plating Weapon Light Assault Rifle Energy Gun Medium Laser Ballistic Gun Light Assault Rifle Launcher Grenade Launcher Build | -11 -10 -9 ------- Run | Yrd Mat Mat Slots Evolved 2 | . . 2 Power . | . . . Propulsion 1 | . . 1 Utility 1 | . . 1 Weapon . | . . . Parts Attached 17 | 6 6 5 Power 2 | 1 . 1 Engine 2 | 1 . 1 Core . | . . . Reactor . | . . . Propulsion 3 | 2 . 1 Treads 3 | 2 . 1 Leg . | . . . Wheel . | . . . Hover . | . . . Flight . | . . . Utility 4 | 1 2 1 Device . | . . . Storage 2 | 1 1 . Processor . | . . . Hackware . | . . . Protection 2 | . 1 1 Artifact . | . . . Weapon 8 | 2 4 2 Energy Gun 2 | 2 . . Energy Cannon . | . . . Ballistic Gun 3 | . 3 . Ballistic Cannon . | . . . Launcher 3 | . 1 2 Special Weapon . | . . . Impact Weapon . | . . . Slashing Weapon . | . . . Piercing Weapon . | . . . Special Melee Weapon . | . . . Unidentified Prototypes . | . . . Parts Lost 11 | . . 11 Power 2 | . . 2 Propulsion 3 | . . 3 Utility 2 | . . 2 Weapon 4 | . . 4 Highest Loss Streak 11 | . . 11 To Critical Strikes . | . . . Average Slot Usage (%) 86 | . 91 80 Engine 12 | . 14 11 Treads 26 | . 28 23 Storage 12 | . 14 11 Protection 9 | . 6 13 Energy Gun 5 | . 10 . Ballistic Gun 19 | . 17 21 Naked Turns . | . . . Heaviest Build 53 | 14 50 53 Greatest Support 60 | 40 40 60 Greatest Overweight (x) 1 | . 1 1 Average Overweight (x) . | . . . Largest Inventory Capacity 20 | 8 20 20 Average Capacity 15 | 7 12 20 Most Carried 10 | 2 9 10 Average Carried 7 | . 6 9 Final Capacity 20 | 8 20 20 Final Carried 9 | 1 9 6 Class Distribution -------------------- 100% | Mutant Dominant Class ---------------- Mutant | -10/Materials Mutant | -9/Materials Resources | -11 -10 -9 ----------- Run | Yrd Mat Mat Matter Collected 402 | 195 100 107 Remotely . | . . . Salvage Created 789 | . 392 397 Parts 49 | . 28 21 Haulers Intercepted 1 | . 1 . Recyclers Shooed 3 | . 1 2 Parts Field Recycled . | . . . Retrieved Matter . | . . . Parts Self-Destructed . | . . . Prevented . | . . . Kills | -11 -10 -9 ------- Run | Yrd Mat Mat Combat Hostiles Destroyed 13 | . 7 6 Guns 8 | . 4 4 AOE 5 | . 3 2 Classes Destroyed 9 | . 6 3 Builder 2 | . . 2 Hauler 1 | . 1 . Recycler 4 | . 2 2 Mechanic 2 | . 1 1 Operator 1 | . . 1 Watcher 1 | . 1 . Swarmer 5 | . 5 . Grunt 6 | . 2 4 Sentry 2 | . . 2 Best Kill Streak 8 | . 3 8 Combat Bots Only 4 | . 3 4 Max Kills in Single Turn 3 | . 3 2 Gunslinging . | . . . Exploded 3 | . 3 1 Melee . | . . . Uniques/NPCs Destroyed . | . . . Combat | -11 -10 -9 -------- Run | Yrd Mat Mat Hostile Shots Fired 87 | . 26 61 Missed 16 | . 5 11 Damage Taken 1206 | . 204 1002 Core 188 | . 38 150 Absorbed by Shields . | . . . Core Remaining (%) 92 | 100 84 . Volleys Fired 80 | 1 25 54 Largest 2 | 2 2 2 Hottest 100 | 100 100 50 Shots Fired 142 | 2 49 91 Gun 135 | 2 48 85 Cannon . | . . . Launcher 7 | . 1 6 Special . | . . . Kinetic 105 | . 20 85 Thermal 30 | 2 28 . Explosive 7 | . 1 6 Electromagnetic . | . . . Robot Hit Streak 14 | 1 5 14 Robot Miss Streak 3 | 1 3 3 Penetration Max . | . . . Secondary Targets . | . . . Shots Hit Robots 92 | 1 26 65 Core Hits 53 | . 20 33 Critical Kills . | . . . Critical Parts Destroyed 1 | . . 1 Critical Strikes 3 | . 2 1 Burn 2 | . 2 . Destroy 1 | . . 1 Melee Attacks . | . . . Impact . | . . . Slashing . | . . . Piercing . | . . . Sneak Attacks . | . . . Combat Hostiles . | . . . Follow-up Attacks . | . . . Damage Inflicted 1441 | 12 452 977 Guns 799 | 12 302 485 Cannons . | . . . Explosions 642 | . 150 492 Melee . | . . . Ramming . | . . . Kinetic 588 | . 103 485 Thermal 211 | 12 199 . Explosive 642 | . 150 492 Electromagnetic . | . . . Impact . | . . . Slashing . | . . . Piercing . | . . . Highest Corruption . | . . . Average Corruption . | . . . Corruption Purged . | . . . Corruption Blocked . | . . . Overload Shots . | . . . Overflow Damage 54 | . 7 47 Projectiles . | . . . Explosions 54 | . 7 47 Melee . | . . . Knockbacks . | . . . Impact . | . . . Kinetic . | . . . Secondary . | . . . Self-Inflicted Damage 332 | . 17 315 Shots 8 | . 1 7 Rammed . | . . . Targets Rammed . | . . . Kicked . | . . . Crushed . | . . . Highest Temperature 261 | 39 261 55 Average Temperature 52 | 20 82 13 Received Heat Transfer 345 | . 48 297 Siege Activations . | . . . Robots Corrupted . | . . . Combat Hostiles . | . . . Parts Fried . | . . . Impact Corruptions . | . . . Robots Melted . | . . . Combat Hostiles . | . . . Parts Melted 1 | . 1 . Heat Transferred 777 | 37 740 . Parts Sabotaged . | . . . Parts Stolen . | . . . Parts Stripped . | . . . Power Chain Reactions . | . . . Alert | -11 -10 -9 ------- Run | Yrd Mat Mat Peak Influence 152 | . 147 152 Initial 57 | . . 57 Average 81 | . 79 95 Maximum Alert Level . | . . . Low Security (%) 100 | 100 100 100 Level 1 . | . . . Level 2 . | . . . Level 3 . | . . . Level 4 . | . . . Level 5 . | . . . High Security . | . . . Max Security . | . . . Squads Dispatched 2 | . 1 1 Investigation 1 | . 1 . Extermination . | . . . Reinforcement 1 | . . 1 Assault . | . . . Garrison . | . . . Intercept . | . . . Searches Triggered . | . . . Construction Impeded 1 | . . 1 Haulers Reinforced . | . . . Active Scanning Responses . | . . . Cargo Convoy Interrupts . | . . . Stealth | -11 -10 -9 --------- Run | Yrd Mat Mat Distress Signals 4 | . 3 1 Communications Jammed . | . . . Distress Signals . | . . . Times Spotted 30 | . 16 14 Peak Tracking Total 5 | . 5 5 Tactical Retreats 1 | . . 1 Traps | -11 -10 -9 ------- Run | Yrd Mat Mat Traps Triggered 1 | . 1 . Indirectly . | . . . Trap Hack Attempts . | . . . Triggered . | . . . Disarmed . | . . . Reprogrammed . | . . . Reused . | . . . Traps Extracted . | . . . Installed . | . . . Triggered . | . . . Machines | -11 -10 -9 ---------- Run | Yrd Mat Mat Machines Disabled 1 | . . 1 Max in Single Turn 1 | . . 1 Machines Repaired . | . . . Machines Dismantled . | . . . Machines Sabotaged . | . . . Overloaded Fab Kills . | . . . Hacking | -11 -10 -9 --------- Run | Yrd Mat Mat Machines Accessed 6 | . 4 2 Terminals 5 | . 4 1 Fabricators . | . . . Repair Stations . | . . . Recycling Units . | . . . Scanalyzers 1 | . . 1 Garrison Access . | . . . Total Hacks 12 | . 8 4 Successful 8 | . 4 4 Failed 4 | . 4 . Catastrophic . | . . . Database Lockouts . | . . . Manual 4 | . 3 1 Terminals 9 | . 8 1 Fabricators . | . . . Repair Stations . | . . . Recycling Units . | . . . Scanalyzers 3 | . . 3 Garrison Access . | . . . Terminal Hacks 3 | . 3 . Record 1 | . 1 . Part Schematic 1 | . 1 . Branch Access Points 1 | . 1 . Fabricator Hacks . | . . . Repair Station Hacks . | . . . Recycling Unit Hacks . | . . . Scanalyzer 3 | . . 3 Insert Component 2 | . . 2 Analyze 1 | . . 1 Garrison Access Hacks . | . . . Unauthorized Hacks 2 | . 1 1 Terminals 2 | . 1 1 Botnet 2 | . 1 1 Fabricators . | . . . Repair Stations . | . . . Recycling Units . | . . . Scanalyzers . | . . . Garrison Access . | . . . Data Cores Recovered . | . . . Used . | . . . Hacking Detections 3 | . 2 1 Full Trace Events 1 | . 1 . Feedback Events . | . . . Feedback Blocked . | . . . Robot Schematics Acquired . | . . . Robots Built . | . . . Authchips . | . . . Time . | . . . Total Robot Build Rating . | . . . Part Schematics Acquired 2 | . 1 1 Parts Built . | . . . Authchips . | . . . Time . | . . . Total Part Build Rating . | . . . Parts Repaired . | . . . Time . | . . . Parts Recycled . | . . . Recycled Matter . | . . . Retrieved Matter . | . . . Retrieved Components . | . . . Parts Scanalyzed 1 | . . 1 Part Schematics Acquired 1 | . . 1 Parts Damaged . | . . . Bothacking | -11 -10 -9 ------------ Run | Yrd Mat Mat Used RIF Installer . | . . . Robots Hacked . | . . . Non-combat . | . . . Combat . | . . . Robot Hacks Applied . | . . . Relay Couplers Released . | . . . Fabnet Peak Effective % . | . . . Robots Rewired . | . . . Allies Hacked . | . . . Hacks Repelled . | . . . Allies | -11 -10 -9 -------- Run | Yrd Mat Mat Total Allies . | . . . Largest Group . | . . . Highest-Rated Group . | . . . Highest-Rated Ally . | . . . Total Orders . | . . . Ally Attacks . | . . . Total Damage . | . . . Kills . | . . . Allies Corrupted . | . . . Allies Melted . | . . . Intel | -11 -10 -9 ------- Run | Yrd Mat Mat Robot Analysis Total . | . . . Derelict Logs Recovered . | . . . Drone Launches . | . . . Drone Recoveries . | . . . Exploration | -11 -10 -9 ------------- Run | Yrd Mat Mat Turns Passed 1277 | 73 673 531 Spaces Moved 520 | 39 315 166 Core 2 | 2 . . Treads 518 | 37 315 166 Legs . | . . . Wheels . | . . . Hover . | . . . Flight . | . . . Fastest Speed 50 | 50 160 160 Average Speed 198 | 154 185 231 Slowest Speed 240 | 160 240 240 Overloaded Moves . | . . . Propulsion Burnouts . | . . . Robots Hopped . | . . . Cave-ins Triggered . | . . . Exploration Rate (%) 35 | 3 72 30 Regions Visited 2 Branch Regions . Pre-discovered Areas . | . . . Known Exits Taken . | . . . Unknown Exits Taken 2 | 1 1 . Scrap Searched . | . . . Spaces Dug 5 | . 5 . Terrain Destroyed 44 | . 5 39 Melee . | . . . Projectile . | . . . AOE 44 | . 5 39 Terrain Rammed . | . . . Walls Destroyed . | . . . Machines Disabled . | . . . Actions | -11 -10 -9 --------- Run | Yrd Mat Mat Total 642 | 47 357 238 Wait 14 | . 2 12 Move 518 | 38 314 166 Hop . | . . . Pick Up 10 | 2 7 1 Fast Attach 9 | 5 3 1 Attach 5 | 1 . 4 Detach . | . . . Swap 3 | . 3 . Drop 3 | . 3 . Fire 80 | 1 25 54 Melee . | . . . Ram . | . . . Kick . | . . . Crush . | . . . Escape Stasis . | . . . Rewire . | . . . Trap . | . . . Miscellaneous . | . . . Route ------- -11/Scrapyard -10/Materials (discovered 3 exits: *Mat x2 / *Min) -9/Materials (discovered 1 exit: [*Min]) History --------- Turn | Location | Event 13 | -11/Scrapyard | Discovered new exit (range 15) 74 | -11/Scrapyard | Entered Materials 193 | -10/Materials | Discovered new exit (range 16) 303 | -10/Materials | Build established: Mutant 406 | -10/Materials | Identified exit to Mines 438 | -10/Materials | Discovered new exit (range 10) 711 | -10/Materials | Discovered new exit (range 14) 747 | -10/Materials | Entered another Materials area 747 | -9/Materials | Evolved 2 slots: Propulsion x1, Utility x1 1075 | -9/Materials | Discovered new exit (range 16) 1278 | -9/Materials | Self-destructed Last Messages --------------- 01270_ Destroyed Lgt. Armor Plating. 01270_ Grenade Launcher destroyed. 01271_ Nuclear Reactor explodes. 01271_ Lgt. Treads destroyed. 01271_ Destroyed Lgt. Treads. 01271_ Lgt. Treads destroyed. 01271_ Destroyed Lgt. Treads. 01271_ Lgt. Ion Engine destroyed. 01271_ Destroyed Lgt. Ion Engine. 01271_ Lgt. Assault Rifle destroyed. 01271_ Destroyed Lgt. Assault Rifle. 01271_ U-05 Engineer destroyed. 01273_ U-05 Engineer lays Concrete. 01274_ K-01 Serf collects debris. 01275_ U-05 Engineer lays Concrete. 01276_ Grenade Launcher destroyed. 01276_ Destroyed Grenade Launcher. 01277_ The unstable cave ceiling collapses. 01277_ U-05 Engineer builds a Wall. 01278_ K-01 Serf collects debris. Map ----- +----------------------------------------------------+ | ????????# # #? #??#[!=#????????????? | | ????????# # #? #??# #????????????? | | ????????# ?# # """ #??# = #????????????? | | ????????# ?# # """ #??#####????????????? | | ????????########??# + """ #???????????????????? | | ??????????????????# # #???????????????????? | | ?????????????????## ########???????????????????? | | ?????????????????# "#???????????????????????? | | ?????????????????# ""#???????????????????????? | | ?????????????????# !!#???????????????????????? | | ?????????????????# < ""#???????????????????????? | | ?????????????????# !!#???????????????????????? | | ?????????????????# ""#???????????????????????? | | ?????????????????# "#???????????????????????? | | ?????????########## ####???????????????????????? | | ?????????# # # ???????????????????????? | | ?????????# """ + # ???????????????????????? | | ?????????# """ # # "???????????????????????? | | ?????????# """ # # "???????????????????????? | | ?????????# # # "???????????????????????? | | ?????????# # k## ############ ??????????? | | ?????????# "" # ?????????? | | ?????????# S"" + ! ?????????? | | ?????????# "" # !?????????? | | ?????????########### Y ##???????????????? | | ??????????????????# @ #????????????????? | | ??????????? #????????????????? | | ?????????? ==! #????????????????? | | ??????????? ==! # #????????????????? | | ??????????? =!! # * #???????????????? | | ???????????? k #???????????????? | | ???????????? * ??????????????? | | ???????????? ## # a ?????????????? | | ?????????????####+##?####### ???????????? | | ????????????????????????????# ######???????????? | | ????????????????????????????? #????????????????? | | ????????????????????????????? #????????????????? | | ?????????????????????????????? #????????????????? | | ?????????????????????????????? #????????????????? | | ?????????????????????????????????????????????????? | | ?????????????????????????????????????????????????? | | ?????????????????????????????????????????????????? | | ?????????????????????????????????????????????????? | | ?????????????????????????????????????????????????? | | ?????????????????????????????????????????????????? | | ?????????????????????????????????????????????????? | | ?????????????????????????????????????????????????? | | ?????????????????????????????????????????????????? | | ?????????????????????????????????????????????????? | | ?????????????????????????????????????????????????? | +----------------------------------------------------+ Best States ------------- Heat Dissipation 28 Energy Generation 10 Energy Capacity 250 Matter Stores 300 Matter Capacity 300 Sight Range 16 Terrain Scan Density 10 Armor Coverage 300 Evasion (%) 40 Recoil Reduction 3 Item Schematics ----------------- Cargo Storage Unit | -10/Materials | Hacked Machine Analyzer | -9/Materials | Scanalyzed Robot Schematics ------------------ None Fabricated ------------ Nothing Alien Tech Used ----------------- None Achievements -------------- None Challenges ------------ None Game ------ Seed ThrowingHeavyExtractor Manual? 0 Play Time 00:10:22 Cumulative 114.0 hours Start 2024.04.27 @ 12:28:30 End 2024.04.27 @ 12:36:12 Sessions 1 Manual Loads 0 Difficulty Rogue Special Mode None Game No. 147 Rogue 147 Adventurer 0 Explorer 0 Win Type - Total 1 Types 1/0/0/0/0/0/0/0/0 Lore% 48 Gallery% 52 Achievement% 50 Wizard Run 0 Options --------- Layout 1 ASCII 0 Keyboard 0 Movement Mouse Keybinds 0 Fullscreen 2 Font 32/Smallcaps Map View 50x40 Zoom Use 0% Tactical HUD 1 Map Filters NONE Filters NONE Steam 1 RUN: 0a29e103-2be2-4246-b7f2-0caf3b9e1cca